fUST/lending_fUST_20250930
["ID","MTS","AMOUNT","RATE_DAILY","PERIOD"]
[388424157,1759164642856,-480.0,0.00023539,2]
[388424159,1759164642866,-480.0,0.00023539,2]
[388424160,1759164642876,-731.82,0.00023539,2]
[388424161,1759164642885,-480.0,0.00023539,2]
[388424163,1759164642894,-480.0,0.00023539,2]
[388424164,1759164642903,-481.62728696,0.00023539,2]
[388424165,1759164642912,-480.0,0.00023539,2]
[388424166,1759164642921,-500.0,0.00023539,2]
[388424167,1759164642930,-480.0,0.00023539,2]
[388424168,1759164642940,-480.0,0.00023539,2]
[388424170,1759164642953,-480.0,0.00023539,2]
[388424172,1759164642963,-733.26,0.00023539,2]
[388424174,1759164642974,-480.0,0.00023539,2]
[388424175,1759164642985,-480.0,0.00023539,2]
[388424177,1759164642995,-480.0,0.00023539,2]
[388424180,1759164643006,-480.0,0.00023539,2]
[388424184,1759164643018,-1406.03,0.00023539,2]
[388424186,1759164643028,-480.0,0.00023539,2]
[388424188,1759164643039,-480.0,0.00023539,2]
[388424190,1759164643051,-480.0,0.00023539,2]
[388424193,1759164643062,-746.03,0.00023539,2]
[388424196,1759164643071,-486.07500806,0.00023539,2]
[388424199,1759164643081,-668.39,0.00023539,2]
[388424201,1759164643091,-592.17,0.00023539,2]
[388424203,1759164643101,-480.0,0.00023539,2]
[388424206,1759164643111,-480.0,0.00023539,2]
[388424208,1759164643121,-480.0,0.00023539,2]
[388424209,1759164643131,-647.59,0.00023539,2]
[388424210,1759164643144,-480.0,0.00023539,2]
[388424211,1759164643154,-480.0,0.00023539,2]
[388424212,1759164643163,-480.0,0.00023539,2]
[388424213,1759164643172,-480.0,0.00023539,2]
[388424214,1759164643183,-480.0,0.00023539,2]
[388424215,1759164643192,-678.25,0.00023539,2]
[388424216,1759164643204,-480.0,0.00023539,2]
[388424217,1759164643215,-480.0,0.00023539,2]
[388424218,1759164643226,-767.6,0.00023539,2]
[388424219,1759164643235,-481.16,0.00023539,2]
[388424220,1759164643245,-480.0,0.00023539,2]
[388424221,1759164643255,-811.37,0.00023539,2]
[388424222,1759164643264,-480.0,0.00023539,2]
[388424224,1759164643273,-1578.7,0.00023539,2]
[388424225,1759164643283,-493.87,0.00023539,2]
[388424226,1759164643292,-480.0,0.00023539,2]
[388424227,1759164643301,-480.0,0.00023539,2]
[388424228,1759164643311,-480.0,0.00023539,2]
[388424230,1759164643320,-674.33,0.00023539,2]
[388424231,1759164643329,-480.0,0.00023539,2]
[388424232,1759164643338,-480.0,0.00023539,2]
[388424233,1759164643347,-483.06591017,0.00023539,2]
[388424234,1759164643358,-480.0,0.00023539,2]
[388424235,1759164643368,-480.0,0.00023539,2]
[388424236,1759164643377,-480.0,0.00023539,2]
[388424237,1759164643387,-480.0,0.00023539,2]
[388424238,1759164643397,-480.0,0.00023539,2]
[388424239,1759164643407,-882.45,0.00023539,2]
[388424240,1759164643416,-480.0,0.00023539,2]
[388424241,1759164643425,-480.0,0.00023539,2]
[388424242,1759164643434,-2292.38,0.00023539,2]
[388424243,1759164643446,-480.0,0.00023539,2]
[388424244,1759164643454,-480.0,0.00023539,2]
[388424245,1759164643464,-524.21,0.00023539,2]
[388424246,1759164643473,-681.01,0.00023539,2]
[388424247,1759164643483,-480.0,0.00023539,2]
[388424248,1759164643492,-480.0,0.00023539,2]
[388424249,1759164643502,-1345.86,0.00023539,2]
[388424250,1759164643511,-480.0,0.00023539,2]
[388424251,1759164643520,-2503.13,0.00023539,2]
[388424252,1759164643530,-480.0,0.00023539,2]
[388424253,1759164643539,-532.47,0.00023539,2]
[388424254,1759164643549,-480.0,0.00023539,2]
[388424255,1759164643558,-480.0,0.00023539,2]
[388424256,1759164643567,-480.0,0.00023539,2]
[388424257,1759164643577,-480.0,0.00023539,2]
[388424258,1759164643586,-480.0,0.00023539,2]
[388424259,1759164643596,-480.0,0.00023539,2]
[388424260,1759164643605,-480.0,0.00023539,2]
[388424262,1759164643615,-661.84,0.00023539,2]
[388424264,1759164643625,-480.0,0.00023539,2]
[388424265,1759164643634,-480.0,0.00023539,2]
[388424266,1759164643643,-480.0,0.00023539,2]
[388424267,1759164643652,-480.0,0.00023539,2]
[388424268,1759164643663,-649.63,0.00023539,2]
[388424269,1759164643672,-480.0,0.00023539,2]
[388424270,1759164643682,-539.09,0.00023539,2]
[388424271,1759164643691,-480.0,0.00023539,2]
[388424272,1759164643702,-830.96,0.00023539,2]
[388424273,1759164643713,-480.0,0.00023539,2]
[388424274,1759164643724,-480.0,0.00023539,2]
[388424275,1759164643733,-505.8,0.00023539,2]
[388424276,1759164643743,-480.0,0.00023539,2]
[388424277,1759164643753,-480.0,0.00023539,2]
[388424278,1759164643762,-499.22,0.00023539,2]
[388424279,1759164643772,-480.0,0.00023539,2]
[388424280,1759164643781,-480.0,0.00023539,2]
[388424281,1759164643791,-480.0,0.00023539,2]
[388424282,1759164643801,-1034.38,0.00023539,2]
[388424283,1759164643810,-480.0,0.00023539,2]
[388424284,1759164643822,-480.0,0.00023539,2]
[388424285,1759164643831,-609.8,0.00023553,2]
[388424286,1759164643840,-609.8,0.00023553,2]
[388424287,1759164643850,-480.0,0.00023554,2]
[388424288,1759164643860,-480.0,0.00023561,2]
[388424289,1759164643869,-480.0,0.00023561,2]
[388424290,1759164643879,-480.0,0.00023561,2]
[388424291,1759164643888,-481.52135645,0.00023561,2]
[388424292,1759164643899,-480.0,0.00023561,2]
[388424293,1759164643908,-480.0,0.00023561,2]
[388424294,1759164643919,-583.41487089,0.00023561,2]
[388424295,1759164643929,-465.09851054,0.00023561,2]
[388424296,1759164643939,-480.0,0.00023561,2]
[388424297,1759164643948,-609.8,0.00023561,2]
[388424298,1759164643958,-609.8,0.00023561,2]
[388424299,1759164643967,-609.8,0.00023561,2]
[388424300,1759164643977,-609.8,0.00023561,2]
[388424301,1759164643986,-609.8,0.00023561,2]
[388424302,1759164643995,-609.8,0.00023561,2]
[388424303,1759164644005,-609.8,0.00023561,2]
[388424304,1759164644015,-609.86,0.00023561,2]
[388424305,1759164644025,-500.0,0.00023561,2]
[388424306,1759164644037,-500.0,0.00023561,2]
[388424307,1759164644047,-1000.0,0.00023561,5]
[388424308,1759164644056,-500.0,0.00023562,2]
[388424309,1759164644065,-500.0,0.00023562,2]
[388424310,1759164644075,-502.17913071,0.00023562,2]
[388424311,1759164644085,-1000.0,0.00023562,2]
[388424312,1759164644094,-1000.0,0.00023562,2]
[388424313,1759164644103,-1000.0,0.00023562,2]
[388424314,1759164644113,-1000.0,0.00023562,2]
[388424315,1759164644122,-1000.0,0.00023562,2]
[388424316,1759164644132,-500.0,0.00023563,2]
[388424317,1759164644144,-938.2396511,0.00023563,2]
[388424318,1759164644154,-500.0,0.00023564,2]
[388424319,1759164644163,-500.0,0.00023564,2]
[388424320,1759164644173,-500.0,0.00023565,2]
[388424321,1759164644183,-500.0,0.00023565,2]
[388424322,1759164644192,-10196.08411892,0.0002357,2]
[388424323,1759164644203,-164.93279931,0.00023573,2]
[388424324,1759164644214,-501.15189891,0.00023573,2]
[388424325,1759164644225,-500.0,0.00023573,2]
[388424326,1759164644235,-500.0,0.00023573,2]
[388424327,1759164644244,-500.0,0.00023573,2]
[388424328,1759164644254,-593.69875601,0.00023573,2]
[388424329,1759164644264,-500.0,0.00023573,2]
[388424330,1759164644274,-500.0,0.00023573,2]
[388424331,1759164644283,-500.0,0.00023573,2]
[388424332,1759164644292,-500.0,0.00023573,2]
[388424333,1759164644302,-509.74403695,0.00023573,2]
[388424334,1759164644311,-572.08826976,0.00023573,2]
[388424335,1759164644321,-500.0,0.00023573,2]
[388424336,1759164644330,-616.25763511,0.00023573,2]
[388424337,1759164644339,-500.0,0.00023573,2]
[388424338,1759164644349,-500.0,0.00023573,2]
[388424339,1759164644359,-500.0,0.00023573,2]
[388424340,1759164644368,-451.61334099,0.00023573,2]
[388424341,1759164644378,-329.93889635,0.00023585,2]
[388424342,1759164644387,-151.0,0.000236,7]
[388424343,1759164644397,-150.99,0.000236,5]
[388424344,1759164644406,-151.0,0.000236,10]
[388424345,1759164644416,-151.0,0.000236,9]
[388424346,1759164644425,-322.83,0.0002361,2]
[388424347,1759164644434,-186.7,0.0002361,2]
[388424348,1759164644446,-186.7,0.0002361,2]
[388424349,1759164644455,-186.7,0.0002361,2]
[388424350,1759164644464,-186.7,0.0002361,2]
[388424351,1759164644474,-186.7,0.0002361,2]
[388424352,1759164644483,-186.7,0.0002361,2]
[388424353,1759164644493,-186.69,0.0002361,2]
[388424354,1759164644503,-500.0,0.00023614,2]
[388424355,1759164644512,-1419.69921587,0.0002363,2]
[388424356,1759164644523,-10196.08411892,0.00023638,2]
[388424357,1759164644532,-500.0,0.00023639,2]
[388424358,1759164644541,-500.0,0.0002366,2]
[388424359,1759164644550,-500.0,0.0002366,2]
[388424360,1759164644560,-500.0,0.0002366,2]
[388424361,1759164644569,-500.0,0.0002366,2]
[388424362,1759164644578,-500.0,0.0002366,2]
[388424363,1759164644587,-520.0,0.00023661,3]
[388424364,1759164644596,-480.0,0.00023661,2]
[388424365,1759164644605,-480.0,0.00023661,2]
[388424366,1759164644614,-500.0,0.00023661,2]
[388424367,1759164644623,-582.95905103,0.00023662,2]
[388424368,1759164644632,-480.0,0.00023666,2]
[388424369,1759164644641,-575.25,0.00023666,2]
[388424370,1759164644651,-537.22,0.00023666,2]
[388424371,1759164644660,-365.14262626,0.00023666,2]
[388424372,1759164644669,-480.0,0.00023666,2]
[388424373,1759164644679,-480.0,0.00023666,2]
[388424374,1759164644688,-480.0,0.00023666,2]
[388424375,1759164644698,-480.0,0.00023666,2]
[388424376,1759164644707,-480.0,0.00023666,2]
[388424377,1759164644717,-480.0,0.00023666,2]
[388424378,1759164644727,-480.0,0.00023666,2]
[388424379,1759164644736,-480.0,0.00023666,2]
[388424380,1759164644745,-574.14,0.00023666,2]
[388424381,1759164644754,-480.0,0.00023666,2]
[388424382,1759164644763,-480.0,0.00023666,2]
[388424383,1759164644772,-1000.0,0.00023666,2]
[388424384,1759164644782,-480.0,0.00023666,2]
[388424385,1759164644791,-480.0,0.00023666,2]
[388424386,1759164644799,-480.0,0.00023666,2]
[388424387,1759164644809,-480.0,0.00023666,2]
[388424388,1759164644818,-480.0,0.00023666,2]
[388424389,1759164644827,-480.0,0.00023666,2]
[388424390,1759164644836,-480.0,0.00023666,2]
[388424391,1759164644845,-480.0,0.00023666,2]
[388424392,1759164644853,-480.0,0.00023666,2]
[388424393,1759164644863,-480.0,0.00023666,2]
[388424394,1759164644872,-480.0,0.00023666,2]
[388424395,1759164644881,-496.18,0.00023666,2]
[388424396,1759164644890,-480.0,0.00023666,2]
[388424397,1759164644900,-480.0,0.00023666,2]
[388424398,1759164644908,-249.11112423,0.00023666,2]
[388424399,1759164644917,-480.0,0.00023666,2]
[388424400,1759164645068,-480.0,0.00023666,2]
[388424401,1759164645100,-480.0,0.00023666,2]
[388424402,1759164645109,-480.0,0.00023666,2]
[388424403,1759164645119,-480.0,0.00023666,2]
[388424404,1759164645128,-480.0,0.00023666,2]
[388424405,1759164645142,-480.0,0.00023666,2]
[388424406,1759164645152,-480.0,0.00023666,2]
[388424407,1759164645162,-531.62,0.00023666,2]
[388424408,1759164645171,-480.0,0.00023666,2]
[388424409,1759164645182,-480.0,0.00023666,2]
[388424410,1759164645191,-480.0,0.00023666,2]
[388424411,1759164645203,-306.82911773,0.00023666,2]
[388424412,1759164645215,-598.54,0.00023666,2]
[388424413,1759164645225,-487.7,0.00023666,2]
[388424414,1759164645235,-480.0,0.00023666,2]
[388424415,1759164645244,-435.25189358,0.00023666,2]
[388424416,1759164645254,-480.0,0.00023666,2]
[388424417,1759164645263,-496.44597838,0.00023666,4]
[388424418,1759164645274,-480.0,0.00023666,2]
[388424419,1759164645283,-151.0,0.000237,7]
[388424420,1759164645292,-151.0,0.000237,5]
[388424421,1759164645302,-151.0,0.000237,5]
[388424422,1759164645312,-151.0,0.000237,5]
[388424423,1759164645322,-151.0,0.000237,10]
[388424424,1759164645333,-151.0,0.000237,6]
[388424425,1759164645342,-659.0,0.0002371,2]
[388424426,1759164645354,-322.83,0.0002371,2]
[388424427,1759164645363,-480.0,0.00023711,2]
[388424428,1759164645373,-480.0,0.00023711,2]
[388424429,1759164645382,-480.0,0.00023711,2]
[388424430,1759164645392,-480.0,0.00023711,2]
[388424431,1759164645403,-480.0,0.00023711,2]
[388424432,1759164645412,-495.09,0.00023711,2]
[388424433,1759164645422,-480.0,0.00023711,2]
[388424434,1759164645431,-528.78,0.00023711,2]
[388424435,1759164645440,-783.25,0.00023711,2]
[388424436,1759164645452,-725.8,0.00023711,2]
[388424437,1759164645461,-1135.11,0.00023711,2]
[388424438,1759164645471,-480.0,0.00023711,2]
[388424439,1759164645482,-2341.56,0.00023711,2]
[388424440,1759164645491,-480.0,0.00023711,2]
[388424441,1759164645501,-4465.95,0.00023711,2]
[388424442,1759164645510,-480.0,0.00023711,2]
[388424443,1759164645520,-480.0,0.00023711,2]
[388424444,1759164645531,-480.0,0.00023711,2]
[388424445,1759164645540,-521.71,0.00023711,2]
[388424446,1759164645550,-480.0,0.00023711,2]
[388424447,1759164645560,-4814.42,0.00023711,2]
[388424448,1759164645569,-1844.69,0.00023711,2]
[388424449,1759164645579,-1147.45,0.00023711,2]
[388424450,1759164645589,-480.0,0.00023711,2]
[388424451,1759164645599,-515.08,0.00023711,2]
[388424452,1759164645608,-480.0,0.00023711,2]
[388424453,1759164645618,-480.0,0.00023711,2]
[388424454,1759164645628,-620.0,0.00023711,2]
[388424455,1759164645638,-480.0,0.00023711,2]
[388424456,1759164645648,-480.0,0.00023712,2]
[388424457,1759164645658,-480.0,0.00023712,2]
[388424458,1759164645668,-480.0,0.00023712,2]
[388424459,1759164645678,-480.0,0.00023712,2]
[388424460,1759164645688,-842.13,0.00023712,2]
[388424461,1759164645697,-480.0,0.00023712,2]
[388424462,1759164645707,-480.0,0.00023712,2]
[388424463,1759164645717,-480.0,0.00023712,2]
[388424464,1759164645727,-480.0,0.00023712,2]
[388424465,1759164645736,-480.0,0.00023712,2]
[388424466,1759164645745,-611.44,0.00023712,2]
[388424467,1759164645755,-480.0,0.00023712,2]
[388424468,1759164645765,-480.0,0.00023712,2]
[388424469,1759164645774,-480.0,0.00023712,2]
[388424470,1759164645783,-480.0,0.00023712,2]
[388424471,1759164645801,-480.0,0.00023712,2]
[388424472,1759164645811,-303.98594967,0.00023712,2]
[388424473,1759164645820,-666.11,0.00023712,2]
[388424474,1759164645829,-480.0,0.00023712,2]
[388424475,1759164645839,-480.0,0.00023712,2]
[388424476,1759164645848,-480.0,0.00023712,2]
[388424477,1759164645857,-604.42,0.00023712,2]
[388424478,1759164645866,-480.0,0.00023712,2]
[388424479,1759164645876,-480.0,0.00023712,2]
[388424480,1759164645885,-500.17,0.00023712,2]
[388424481,1759164645895,-480.0,0.00023712,2]
[388424482,1759164645904,-480.0,0.00023712,2]
[388424483,1759164645914,-480.0,0.00023712,2]
[388424484,1759164645923,-480.0,0.00023712,2]
[388424485,1759164645933,-480.0,0.00023712,2]
[388424486,1759164645942,-480.0,0.00023712,2]
[388424487,1759164645954,-661.3,0.00023712,2]
[388424488,1759164645963,-502.68,0.00023712,2]
[388424489,1759164645972,-480.0,0.00023712,2]
[388424490,1759164645983,-560.09,0.00023712,2]
[388424491,1759164645992,-510.55,0.00023712,2]
[388424492,1759164646002,-621.98,0.00023712,2]
[388424493,1759164646011,-480.0,0.00023712,2]
[388424494,1759164646021,-480.0,0.00023712,2]
[388424495,1759164646030,-480.0,0.00023712,2]
[388424496,1759164646039,-508.77672811,0.00023712,2]
[388424497,1759164646049,-480.0,0.00023712,2]
[388424498,1759164646059,-480.0,0.00023712,2]
[388424499,1759164646068,-480.0,0.00023712,2]
[388424500,1759164646077,-480.0,0.00023712,2]
[388424501,1759164646087,-789.41,0.00023712,2]
[388424502,1759164646097,-480.0,0.00023712,2]
[388424503,1759164646106,-480.0,0.00023712,2]
[388424504,1759164646116,-480.0,0.00023712,2]
[388424505,1759164646126,-480.0,0.00023712,2]
[388424506,1759164646139,-480.0,0.00023712,2]
[388424507,1759164646149,-480.0,0.00023712,2]
[388424508,1759164646159,-480.0,0.00023712,2]
[388424509,1759164646169,-480.0,0.00023712,2]
[388424510,1759164646181,-480.0,0.00023712,2]
[388424511,1759164646191,-480.0,0.00023712,2]
[388424512,1759164646201,-480.0,0.00023712,2]
[388424513,1759164646211,-480.0,0.00023712,2]
[388424514,1759164646221,-589.63,0.00023712,2]
[388424515,1759164646230,-480.0,0.00023712,2]
[388424516,1759164646239,-480.0,0.00023712,2]
[388424517,1759164646249,-480.0,0.00023712,2]
[388424518,1759164646259,-480.0,0.00023712,2]
[388424519,1759164646268,-480.0,0.00023712,2]
[388424520,1759164646278,-480.0,0.00023712,2]
[388424521,1759164646288,-485.0038613,0.00023712,2]
[388424522,1759164646297,-480.0,0.00023712,2]
[388424523,1759164646307,-3248.0,0.00023719,2]
[388424524,1759164646317,-633.092,0.00023729,4]
[388424525,1759164646327,-178.643,0.00023729,4]
[388424526,1759164646337,-1000.0,0.00023731,5]
[388424527,1759164646348,-480.0,0.00023737,2]
[388424528,1759164646358,-480.0,0.00023737,2]
[388424529,1759164646367,-480.0,0.00023737,2]
[388424530,1759164646377,-480.0,0.00023737,2]
[388424531,1759164646387,-596.36,0.00023737,2]
[388424532,1759164646397,-480.0,0.00023737,2]
[388424533,1759164646407,-480.0,0.00023737,2]
[388424534,1759164646423,-480.0,0.00023737,2]
[388424535,1759164646432,-3496.08,0.00023737,2]
[388424536,1759164646441,-1095.37,0.00023737,2]
[388424537,1759164646451,-480.0,0.00023737,2]
[388424538,1759164646461,-480.0,0.00023737,2]
[388424539,1759164646470,-1349.09,0.00023737,2]
[388424540,1759164646480,-1039.26,0.00023737,2]
[388424541,1759164646489,-2599.0,0.00023737,2]
[388424542,1759164646499,-1440.98,0.00023737,2]
[388424543,1759164646508,-480.0,0.00023737,2]
[388424544,1759164646519,-642.81,0.00023737,2]
[388424545,1759164646528,-480.0,0.00023737,2]
[388424546,1759164646537,-480.0,0.00023737,2]
[388424547,1759164646546,-2341.91,0.00023737,2]
[388424548,1759164646555,-480.0,0.00023737,2]
[388424549,1759164646565,-776.23,0.00023737,2]
[388424550,1759164646575,-580.76,0.00023737,2]
[388424551,1759164646583,-1642.23,0.00023737,2]
[388424552,1759164646593,-2557.3,0.00023737,2]
[388424553,1759164646602,-480.0,0.00023737,2]
[388424554,1759164646612,-480.0,0.00023737,2]
[388424555,1759164646622,-471.55374942,0.00023737,2]
[388424556,1759164646632,-691.68,0.00023737,2]
[388424557,1759164646641,-535.59,0.00023737,2]
[388424558,1759164646650,-480.0,0.00023737,2]
[388424559,1759164646659,-480.0,0.00023737,2]
[388424560,1759164646669,-1887.42,0.00023737,2]
[388424561,1759164646678,-1663.18,0.00023737,2]
[388424562,1759164646687,-746.54,0.00023737,2]
[388424563,1759164646696,-2557.3,0.00023737,2]
[388424564,1759164646706,-640.16,0.00023737,2]
[388424565,1759164646715,-480.0,0.00023737,2]
[388424566,1759164646725,-633.38,0.00023737,2]
[388424567,1759164646734,-480.0,0.00023737,2]
[388424568,1759164646743,-11073.97,0.00023737,2]
[388424569,1759164646753,-2718.02,0.00023737,2]
[388424570,1759164646763,-551.13,0.00023738,2]
[388424571,1759164646772,-480.0,0.00023738,2]
[388424572,1759164646781,-480.0,0.00023738,2]
[388424573,1759164646791,-480.0,0.00023738,2]
[388424574,1759164646800,-480.0,0.00023738,2]
[388424575,1759164646809,-480.0,0.00023738,2]
[388424576,1759164646819,-480.0,0.00023738,2]
[388424577,1759164646828,-480.0,0.00023738,2]
[388424578,1759164646838,-556.14,0.00023738,2]
[388424579,1759164646847,-480.0,0.00023738,2]
[388424580,1759164646857,-480.0,0.00023738,2]
[388424581,1759164646866,-480.0,0.00023738,2]
[388424582,1759164646876,-665.8,0.00023738,2]
[388424583,1759164646885,-480.0,0.00023738,2]
[388424584,1759164646894,-653.96,0.00023738,2]
[388424585,1759164646903,-480.0,0.00023738,2]
[388424586,1759164646912,-480.0,0.00023738,2]
[388424587,1759164646922,-621.11,0.00023738,2]
[388424588,1759164646931,-480.0,0.00023738,2]
[388424589,1759164646940,-480.0,0.00023738,2]
[388424590,1759164646950,-491.28,0.00023738,2]
[388424591,1759164646959,-1385.7,0.00023738,2]
[388424592,1759164646968,-480.0,0.00023738,2]
[388424593,1759164646977,-483.4339518,0.00023738,2]
[388424594,1759164646987,-480.0,0.00023738,2]
[388424595,1759164646996,-410.55409294,0.00023738,2]
[388424596,1759164647006,-630.97,0.00023738,2]
[388424597,1759164647015,-480.0,0.00023738,2]
[388424598,1759164647025,-480.0,0.00023738,2]
[388424599,1759164647033,-500.0,0.00023738,2]
[388424600,1759164647043,-480.0,0.00023738,2]
[388424601,1759164647052,-563.98,0.00023738,2]
[388424602,1759164647062,-734.07,0.00023738,2]
[388424603,1759164647072,-1173.05,0.00023738,2]
[388424604,1759164647081,-800.57,0.00023738,2]
[388424605,1759164647091,-480.0,0.00023738,2]
[388424606,1759164647100,-1196.04,0.00023738,2]
[388424607,1759164647109,-583.93,0.00023738,2]
[388424608,1759164647119,-578.16,0.00023738,2]
[388424609,1759164647131,-480.0,0.00023738,2]
[388424610,1759164647142,-1611.12,0.00023738,2]
[388424611,1759164647152,-1140.79,0.00023738,2]
[388424612,1759164647161,-505.34,0.00023738,2]
[388424613,1759164647171,-676.78,0.00023738,2]
[388424614,1759164647182,-879.25,0.00023738,2]
[388424615,1759164647191,-644.7,0.00023738,2]
[388424616,1759164647203,-480.0,0.00023738,2]
[388424617,1759164647213,-656.61,0.00023738,2]
[388424618,1759164647222,-1480.83,0.00023738,2]
[388424619,1759164647231,-853.74,0.00023738,2]
[388424620,1759164647240,-480.0,0.00023738,2]
[388424621,1759164647249,-682.54,0.00023738,2]
[388424622,1759164647258,-480.0,0.00023738,2]
[388424623,1759164647267,-169.63260729,0.00023738,2]
[388424624,1759164647276,-480.0,0.00023738,2]
[388424625,1759164647285,-675.01,0.00023738,2]
[388424626,1759164647294,-480.0,0.00023738,2]
[388424627,1759164647303,-1144.88,0.00023738,2]
[388424628,1759164647312,-480.0,0.00023738,2]
[388424629,1759164647322,-480.0,0.00023738,2]
[388424630,1759164647331,-744.51,0.00023738,2]
[388424631,1759164647340,-1117.77,0.00023738,2]
[388424632,1759164647349,-480.0,0.00023738,2]
[388424633,1759164647359,-480.0,0.00023738,2]
[388424634,1759164647368,-380.0,0.00023738,2]
[388424635,1759164647377,-1023.78,0.00023738,2]
[388424636,1759164647386,-853.74,0.00023738,2]
[388424637,1759164647395,-3620.99,0.00023738,2]
[388424638,1759164647404,-1562.59,0.00023738,2]
[388424639,1759164647413,-480.0,0.00023738,2]
[388424640,1759164647422,-480.0,0.00023738,2]
[388424641,1759164647482,-1134.39,0.00023738,2]
[388424642,1759164647491,-654.93,0.00023738,2]
[388424643,1759164647502,-965.23,0.00023738,2]
[388424644,1759164647511,-2407.42,0.00023738,2]
[388424645,1759164647520,-480.0,0.00023738,2]
[388424646,1759164647529,-480.0,0.00023738,2]
[388424647,1759164647538,-1940.44,0.00023738,2]
[388424648,1759164647547,-480.0,0.00023738,2]
[388424649,1759164647556,-657.71,0.00023738,2]
[388424650,1759164647565,-480.0,0.00023738,2]
[388424651,1759164647575,-480.0,0.00023738,2]
[388424652,1759164647583,-861.61,0.00023738,2]
[388424653,1759164647592,-480.0,0.00023738,2]
[388424654,1759164647601,-480.0,0.00023738,2]
[388424655,1759164647610,-1230.82,0.00023738,2]
[388424656,1759164647618,-480.0,0.00023738,2]
[388424657,1759164647628,-480.0,0.00023738,2]
[388424658,1759164647637,-480.0,0.00023738,2]
[388424659,1759164647645,-480.0,0.00023738,2]
[388424660,1759164647654,-946.62,0.00023738,2]
[388424661,1759164647663,-480.0,0.00023738,2]
[388424662,1759164647672,-480.0,0.00023738,2]
[388424663,1759164647680,-2515.07,0.00023738,2]
[388424664,1759164647689,-480.0,0.00023738,2]
[388424665,1759164647699,-1509.42,0.00023738,2]
[388424666,1759164647710,-480.0,0.00023738,2]
[388424667,1759164647719,-1394.46,0.00023738,2]
[388424668,1759164647728,-480.0,0.00023738,2]
[388424669,1759164647737,-867.65,0.00023738,2]
[388424670,1759164647748,-1332.39,0.00023738,2]
[388424671,1759164647757,-6056.69,0.00023738,2]
[388424672,1759164647767,-480.0,0.00023738,2]
[388424673,1759164647776,-480.0,0.00023738,2]
[388424674,1759164647785,-480.0,0.00023738,2]
[388424675,1759164647794,-480.0,0.00023738,2]
[388424676,1759164647803,-2877.01,0.00023738,2]
[388424677,1759164647818,-2696.04,0.00023738,2]
[388424678,1759164647827,-480.0,0.00023738,2]
[388424679,1759164647836,-600.14,0.00023738,2]
[388424680,1759164647845,-481.56382778,0.00023738,2]
[388424681,1759164647854,-696.62,0.00023738,2]
[388424682,1759164647864,-480.0,0.00023738,2]
[388424684,1759164647873,-480.0,0.00023738,2]
[388424685,1759164647882,-1464.58,0.00023738,2]
[388424687,1759164647892,-590.86,0.00023738,2]